[Event "NJSK 2024 C"]
[Site "Groningen, Netherlands"]
[Date "2024.04.29"]
[Round "4.1"]
[White "Groenewoud, Joel"]
[Black "Terlouw, Wouter"]
[Result "1-0"]
[TimeControl "90min/40moves + 30min + 30sec/move"]
[WhiteElo "2030"]
[BlackElo "1961"]

1. e4 {[%clk 01:30:58]} {[%emt 00:00:02]} c5 {[%clk 01:30:57]} {[%emt
00:00:03]} 2. Nf3 {[%clk 01:31:22]} {[%emt 00:00:06]} Nc6 {[%clk 01:31:24]}
{[%emt 00:00:03]} 3. d4 {[%clk 01:31:46]} {[%emt 00:00:06]} cxd4 {[%clk
01:31:50]} {[%emt 00:00:03]} 4. Nxd4 {[%clk 01:32:09]} {[%emt 00:00:08]} Nf6
{[%clk 01:32:17]} {[%emt 00:00:03]} 5. Nc3 {[%clk 01:32:29]} {[%emt 00:00:11]}
e5 {[%clk 01:32:40]} {[%emt 00:00:06]} 6. Ndb5 {[%clk 01:32:54]} {[%emt
00:00:05]} d6 {[%clk 01:33:06]} {[%emt 00:00:04]} 7. Nd5 {[%clk 01:33:19]}
{[%emt 00:00:05]} Nxd5 {[%clk 01:33:32]} {[%emt 00:00:05]} 8. exd5 {[%clk
01:33:43]} {[%emt 00:00:06]} Nb8 {[%clk 01:33:59]} {[%emt 00:00:03]} 9. c4
{[%clk 01:34:05]} {[%emt 00:00:07]} Be7 {[%clk 01:34:23]} {[%emt 00:00:07]} 10.
Be2 {[%clk 01:34:28]} {[%emt 00:00:07]} O-O {[%clk 01:34:46]} {[%emt 00:00:06]}
11. O-O {[%clk 01:34:48]} {[%emt 00:00:10]} a6 {[%clk 01:35:13]} {[%emt
00:00:03]} 12. Nc3 {[%clk 01:35:12]} {[%emt 00:00:07]} f5 {[%clk 01:35:37]}
{[%emt 00:00:06]} 13. a4 {[%clk 01:35:06]} {[%emt 00:00:36]} a5 {[%clk
01:35:13]} {[%emt 00:00:55]} 14. c5 {[%clk 01:34:48]} {[%emt 00:00:47]} dxc5
{[%clk 01:33:53]} {[%emt 00:01:50]} 15. Nb5 {[%clk 01:35:13]} {[%emt 00:00:05]}
Bd6 {[%clk 01:25:27]} {[%emt 00:08:55]} 16. Bc4 {[%clk 01:35:37]} {[%emt
00:00:06]} Ra6 {[%clk 01:24:27]} {[%emt 00:01:31]} 17. f4 {[%clk 01:27:55]}
{[%emt 00:08:12]} e4 {[%clk 01:24:24]} {[%emt 00:00:33]} 18. Bd2 {[%clk
01:26:27]} {[%emt 00:01:57]} Kh8 {[%clk 01:21:18]} {[%emt 00:03:36]} 19. Bc3
{[%clk 01:26:08]} {[%emt 00:00:50]} Nd7 {[%clk 01:21:24]} {[%emt 00:00:22]} 20.
Qd2 {[%clk 01:21:35]} {[%emt 00:05:04]} Nb6 {[%clk 01:12:23]} {[%emt 00:09:32]}
21. Nxd6 {[%clk 01:19:17]} {[%emt 00:02:47]} Qxd6 {[%clk 01:12:47]} {[%emt
00:00:07]} 22. Bxa6 {[%clk 01:19:38]} {[%emt 00:00:09]} bxa6 {[%clk 01:13:08]}
{[%emt 00:00:09]} 23. Rfd1 {[%clk 01:19:29]} {[%emt 00:00:38]} Bb7 {[%clk
01:07:02]} {[%emt 00:06:36]} 24. Be5 {[%clk 01:17:57]} {[%emt 00:02:02]} Qg6
{[%clk 01:06:30]} {[%emt 00:01:01]} 25. Qxa5 {[%clk 01:16:51]} {[%emt
00:01:37]} Nxd5 {[%clk 01:02:40]} {[%emt 00:04:21]} 26. Qxc5 {[%clk 01:16:16]}
{[%emt 00:01:05]} Qf7 {[%clk 00:57:03]} {[%emt 00:06:00]} 27. Rac1 {[%clk
01:10:22]} {[%emt 00:06:31]} e3 {[%clk 00:53:07]} {[%emt 00:04:26]} 28. b4
{[%clk 01:05:41]} {[%emt 00:05:11]} Re8 {[%clk 00:51:44]} {[%emt 00:01:53]} 29.
b5 {[%clk 00:53:17]} {[%emt 00:12:53]} axb5 {[%clk 00:51:50]} {[%emt 00:00:25]}
30. axb5 {[%clk 00:53:20]} {[%emt 00:00:27]} h6 {[%clk 00:50:56]} {[%emt
00:01:23]} 31. Qd4 {[%clk 00:41:48]} {[%emt 00:12:02]} Qg6 {[%clk 00:49:59]}
{[%emt 00:01:27]} 32. Rc2 {[%clk 00:41:02]} {[%emt 00:01:17]} Qg4 {[%clk
00:46:15]} {[%emt 00:04:14]} 33. Re1 {[%clk 00:34:46]} {[%emt 00:06:46]} Re6
{[%clk 00:45:26]} {[%emt 00:01:19]} 34. Qa7 {[%clk 00:28:56]} {[%emt 00:06:20]}
Rb6 {[%clk 00:42:18]} {[%emt 00:03:37]} 35. Rb2 {[%clk 00:23:41]} {[%emt
00:05:44]} Qh4 {[%clk 00:27:16]} {[%emt 00:15:33]} 36. Rc1 {[%clk 00:19:26]}
{[%emt 00:04:42]} Qg4 {[%clk 00:12:02]} {[%emt 00:15:47]} 37. Bd4 {[%clk
00:12:02]} {[%emt 00:07:54]} Nxf4 {[%clk 00:10:59]} {[%emt 00:01:34]} 38. Qxb6
{[%clk 00:09:28]} {[%emt 00:03:03]} Bxg2 {[%clk 00:11:11]} {[%emt 00:00:19]} 39.
Qxh6+ {[%clk 00:09:33]} {[%emt 00:00:24]} Kg8 {[%clk 00:11:32]} {[%emt
00:00:09]} 40. Rc8+ {[%clk 00:09:48]} {[%emt 00:00:15]} Kf7 {[%clk 00:11:53]}
{[%emt 00:00:10]} 41. Rc7+ {[%clk 00:10:11]} {[%emt 00:00:06]} 1-0

[Event "NJSK 2024 C"]
[Site "Groningen, Netherlands"]
[Date "2024.04.29"]
[Round "4.2"]
[White "Kurt, Sascha"]
[Black "Aravindhan, Achyuth"]
[Result "1/2-1/2"]
[TimeControl "90min/40moves + 30min + 30sec/move"]
[WhiteElo "2096"]
[BlackElo "2071"]

1. e4 {[%clk 01:30:54]} {[%emt 00:00:05]} c5 {[%clk 01:30:57]} {[%emt
00:00:04]} 2. Nf3 {[%clk 01:31:20]} {[%emt 00:00:04]} Nc6 {[%clk 01:31:24]}
{[%emt 00:00:04]} 3. d4 {[%clk 01:31:47]} {[%emt 00:00:03]} cxd4 {[%clk
01:31:50]} {[%emt 00:00:04]} 4. Nxd4 {[%clk 01:32:13]} {[%emt 00:00:03]} Nf6
{[%clk 01:32:13]} {[%emt 00:00:07]} 5. Nc3 {[%clk 01:32:37]} {[%emt 00:00:07]}
e5 {[%clk 01:32:40]} {[%emt 00:00:02]} 6. Ndb5 {[%clk 01:33:02]} {[%emt
00:00:05]} d6 {[%clk 01:33:06]} {[%emt 00:00:03]} 7. Bg5 {[%clk 01:33:25]}
{[%emt 00:00:07]} a6 {[%clk 01:33:34]} {[%emt 00:00:03]} 8. Na3 {[%clk
01:33:52]} {[%emt 00:00:04]} b5 {[%clk 01:34:01]} {[%emt 00:00:03]} 9. Nd5
{[%clk 01:34:07]} {[%emt 00:00:14]} Be7 {[%clk 01:34:25]} {[%emt 00:00:05]} 10.
Bxf6 {[%clk 01:34:31]} {[%emt 00:00:07]} Bxf6 {[%clk 01:34:51]} {[%emt
00:00:05]} 11. c4 {[%clk 01:34:49]} {[%emt 00:00:11]} b4 {[%clk 01:35:14]}
{[%emt 00:00:07]} 12. Nc2 {[%clk 01:35:14]} {[%emt 00:00:05]} O-O {[%clk
01:35:37]} {[%emt 00:00:07]} 13. Qf3 {[%clk 01:35:32]} {[%emt 00:00:12]} Bg5
{[%clk 01:27:14]} {[%emt 00:08:53]} 14. h4 {[%clk 01:35:45]} {[%emt 00:00:17]}
Bh6 {[%clk 01:26:31]} {[%emt 00:01:12]} 15. g4 {[%clk 01:36:09]} {[%emt
00:00:07]} f6 {[%clk 01:26:11]} {[%emt 00:00:50]} 16. Qg3 {[%clk 01:36:07]}
{[%emt 00:00:31]} Be6 {[%clk 01:22:59]} {[%emt 00:03:43]} 17. Rd1 {[%clk
01:35:43]} {[%emt 00:00:54]} a5 {[%clk 01:18:02]} {[%emt 00:05:27]} 18. Bh3
{[%clk 01:30:05]} {[%emt 00:06:08]} Bxd5 {[%clk 01:10:56]} {[%emt 00:07:35]} 19.
Rxd5 {[%clk 01:30:13]} {[%emt 00:00:22]} Qe7 {[%clk 01:10:20]} {[%emt
00:01:07]} 20. Qd3 {[%clk 00:48:25]} {[%emt 00:42:16]} Rfd8 {[%clk 01:03:24]}
{[%emt 00:07:28]} 21. Rb5 {[%clk 00:41:42]} {[%emt 00:07:13]} Kh8 {[%clk
00:51:59]} {[%emt 00:11:54]} 1/2-1/2

[Event "NJSK 2024 C"]
[Site "Groningen, Netherlands"]
[Date "2024.04.29"]
[Round "4.3"]
[White "Grooten, Tommy"]
[Black "Chua, Ethan"]
[Result "0-1"]
[TimeControl "90min/40moves + 30min + 30sec/move"]
[WhiteElo "2018"]
[BlackElo "2000"]

1. d4 {[%clk 01:30:58]} {[%emt 00:00:02]} Nf6 {[%clk 01:30:56]} {[%emt
00:00:05]} 2. c4 {[%clk 01:31:24]} {[%emt 00:00:03]} g6 {[%clk 01:31:05]}
{[%emt 00:00:22]} 3. Nc3 {[%clk 01:31:49]} {[%emt 00:00:05]} Bg7 {[%clk
01:31:31]} {[%emt 00:00:03]} 4. e4 {[%clk 01:32:13]} {[%emt 00:00:06]} d6
{[%clk 01:31:58]} {[%emt 00:00:03]} 5. Bd3 {[%clk 01:32:38]} {[%emt 00:00:05]}
Nc6 {[%clk 01:31:01]} {[%emt 00:01:27]} 6. Nge2 {[%clk 01:32:50]} {[%emt
00:00:16]} e5 {[%clk 01:31:10]} {[%emt 00:00:23]} 7. d5 {[%clk 01:33:15]}
{[%emt 00:00:05]} Nd4 {[%clk 01:31:29]} {[%emt 00:00:11]} 8. O-O {[%clk
01:33:34]} {[%emt 00:00:11]} O-O {[%clk 01:31:55]} {[%emt 00:00:04]} 9. a4
{[%clk 01:33:58]} {[%emt 00:00:07]} Nd7 {[%clk 01:24:12]} {[%emt 00:08:13]} 10.
Be3 {[%clk 01:30:19]} {[%emt 00:04:08]} f5 {[%clk 01:18:25]} {[%emt 00:06:18]}
11. exf5 {[%clk 01:30:37]} {[%emt 00:00:12]} gxf5 {[%clk 01:17:18]} {[%emt
00:01:38]} 12. f4 {[%clk 01:30:59]} {[%emt 00:00:07]} Nc5 {[%clk 01:10:04]}
{[%emt 00:07:44]} 13. Bb1 {[%clk 01:21:17]} {[%emt 00:10:11]} Nxe2+ {[%clk
00:57:58]} {[%emt 00:12:38]} 14. Qxe2 {[%clk 01:21:39]} {[%emt 00:00:08]} Nb3
{[%emt 00:00:49]} 15. Ra3 {[%clk 01:22:03]} Nd4 {[%clk 00:58:09]} {[%emt
00:00:06]} 16. Qf2 {[%clk 01:17:18]} {[%emt 00:05:14]} Qf6 {[%clk 00:55:25]}
{[%emt 00:03:14]} 17. Rd1 {[%clk 01:09:42]} {[%emt 00:08:06]} c5 {[%clk
00:43:36]} {[%emt 00:12:20]} 18. a5 {[%clk 01:06:05]} {[%emt 00:04:06]} e4
{[%clk 00:36:36]} {[%emt 00:07:30]} 19. Na4 {[%clk 00:58:07]} {[%emt 00:08:28]}
Bd7 {[%clk 00:30:31]} {[%emt 00:06:36]} 20. b4 {[%clk 00:54:49]} {[%emt
00:03:47]} Bxa4 {[%clk 00:30:21]} {[%emt 00:00:41]} 21. Rxa4 {[%clk 00:55:13]}
{[%emt 00:00:06]} b6 {[%clk 00:29:45]} {[%emt 00:01:05]} 22. Qa2 {[%clk
00:48:05]} {[%emt 00:07:38]} Rab8 {[%clk 00:25:17]} {[%emt 00:04:59]} 23. axb6
{[%clk 00:44:37]} {[%emt 00:03:58]} axb6 {[%clk 00:25:42]} {[%emt 00:00:04]} 24.
Ra6 {[%clk 00:35:20]} {[%emt 00:09:48]} Qg6 {[%clk 00:25:40]} {[%emt 00:00:32]}
25. Kh1 {[%clk 00:33:39]} {[%emt 00:02:10]} Qh5 {[%clk 00:21:43]} {[%emt
00:04:27]} 26. Re1 {[%clk 00:30:01]} {[%emt 00:04:08]} Bf6 {[%clk 00:18:28]}
{[%emt 00:03:45]} 27. Bc2 {[%clk 00:26:04]} {[%emt 00:04:26]} Nf3 {[%clk
00:14:27]} {[%emt 00:04:32]} 28. gxf3 {[%clk 00:24:29]} {[%emt 00:02:05]} Qxf3+
{[%clk 00:14:52]} {[%emt 00:00:05]} 29. Kg1 {[%clk 00:24:54]} {[%emt 00:00:05]}
Rf7 {[%clk 00:13:17]} {[%emt 00:02:05]} 30. Bf2 {[%clk 00:24:03]} {[%emt
00:01:20]} Rg7+ {[%clk 00:13:16]} {[%emt 00:00:32]} 31. Kf1 {[%clk 00:24:27]}
{[%emt 00:00:06]} Bd4 {[%clk 00:13:20]} {[%emt 00:00:26]} 32. Bxe4 {[%clk
00:22:02]} {[%emt 00:02:55]} fxe4 {[%clk 00:13:31]} {[%emt 00:00:19]} 33. Ra3
{[%clk 00:22:02]} {[%emt 00:00:30]} Qg2+ {[%clk 00:13:32]} {[%emt 00:00:29]} 34.
Ke2 {[%clk 00:22:14]} {[%emt 00:00:18]} Qxf2+ {[%clk 00:13:27]} {[%emt
00:00:35]} 35. Kd1 {[%clk 00:22:36]} {[%emt 00:00:08]} Qxa2 {[%clk 00:13:22]}
{[%emt 00:00:36]} 36. Rxa2 {[%clk 00:22:57]} {[%emt 00:00:08]} cxb4 {[%clk
00:13:34]} {[%emt 00:00:18]} 37. Kc2 {[%clk 00:22:35]} {[%emt 00:00:53]} Rg2+
{[%clk 00:13:52]} {[%emt 00:00:11]} 38. Kb3 {[%clk 00:22:55]} {[%emt 00:00:10]}
Rxa2 {[%clk 00:14:17]} {[%emt 00:00:06]} 39. Kxa2 {[%clk 00:23:20]} {[%emt
00:00:04]} e3 {[%clk 00:14:37]} {[%emt 00:00:10]} 40. Kb3 {[%clk 00:23:42]}
{[%emt 00:00:09]} Bc5 {[%clk 00:14:54]} {[%emt 00:00:12]} 0-1

[Event "NJSK 2024 C"]
[Site "Groningen, Netherlands"]
[Date "2024.04.29"]
[Round "4.4"]
[White "Koppenens, Oscar"]
[Black "Ritzerveld, Noah"]
[Result "0-1"]
[TimeControl "90min/40moves + 30min + 30sec/move"]
[WhiteElo "1893"]
[BlackElo "2103"]

1. e4 {[%clk 01:30:54]} {[%emt 00:00:05]} e5 {[%clk 01:30:51]} {[%emt
00:00:09]} 2. Nf3 {[%clk 01:31:21]} {[%emt 00:00:04]} Nc6 {[%clk 01:31:18]}
{[%emt 00:00:03]} 3. Bc4 {[%clk 01:31:45]} {[%emt 00:00:06]} Nf6 {[%clk
01:31:42]} {[%emt 00:00:05]} 4. d4 {[%clk 01:32:03]} {[%emt 00:00:12]} exd4
{[%clk 01:32:06]} {[%emt 00:00:06]} 5. e5 {[%clk 01:32:27]} {[%emt 00:00:07]}
d5 {[%clk 01:32:29]} {[%emt 00:00:06]} 6. Bb5 {[%clk 01:32:54]} {[%emt
00:00:03]} Ne4 {[%clk 01:32:55]} {[%emt 00:00:05]} 7. Nxd4 {[%clk 01:33:16]}
{[%emt 00:00:09]} Bd7 {[%clk 01:33:19]} {[%emt 00:00:06]} 8. Bxc6 {[%clk
01:33:30]} {[%emt 00:00:15]} bxc6 {[%clk 01:33:43]} {[%emt 00:00:06]} 9. O-O
{[%clk 01:33:50]} {[%emt 00:00:10]} Bc5 {[%clk 01:34:07]} {[%emt 00:00:06]} 10.
f3 {[%clk 01:34:09]} {[%emt 00:00:11]} Ng5 {[%clk 01:34:28]} {[%emt 00:00:09]}
11. f4 {[%clk 01:34:30]} {[%emt 00:00:09]} Ne4 {[%clk 01:34:51]} {[%emt
00:00:08]} 12. Be3 {[%clk 01:34:40]} {[%emt 00:00:19]} Bb6 {[%clk 01:35:04]}
{[%emt 00:00:17]} 13. Nd2 {[%clk 01:34:40]} {[%emt 00:00:30]} Nxd2 {[%clk
01:35:28]} {[%emt 00:00:06]} 14. Qxd2 {[%clk 01:35:03]} {[%emt 00:00:07]} c5
{[%clk 01:35:50]} {[%emt 00:00:07]} 15. Nb3 {[%clk 01:35:19]} {[%emt 00:00:15]}
d4 {[%clk 01:36:03]} {[%emt 00:00:17]} 16. Bf2 {[%clk 01:35:44]} {[%emt
00:00:05]} Bb5 {[%clk 01:32:39]} {[%emt 00:03:54]} 17. Rfe1 {[%clk 01:35:12]}
{[%emt 00:01:01]} Qd5 {[%clk 01:29:43]} {[%emt 00:03:27]} 18. e6 {[%clk
01:07:54]} {[%emt 00:27:48]} O-O {[%clk 01:08:14]} {[%emt 00:21:59]} 19. Re5
{[%clk 01:07:49]} {[%emt 00:00:34]} Qc6 {[%clk 01:06:59]} {[%emt 00:01:44]} 20.
e7 {[%clk 00:59:11]} {[%emt 00:09:10]} Rfe8 {[%clk 01:07:18]} {[%emt 00:00:10]}
21. c3 {[%clk 00:59:04]} {[%emt 00:00:38]} f6 {[%clk 01:03:51]} {[%emt
00:03:57]} 22. Ree1 {[%clk 00:58:24]} {[%emt 00:01:09]} Qd5 {[%clk 01:03:35]}
{[%emt 00:00:46]} 23. cxd4 {[%clk 00:56:25]} {[%emt 00:02:30]} Bc6 {[%clk
01:03:57]} {[%emt 00:00:08]} 24. Be3 {[%clk 00:55:09]} {[%emt 00:01:42]} c4
{[%clk 01:03:57]} {[%emt 00:00:34]} 25. Nc5 {[%clk 00:54:57]} {[%emt 00:00:42]}
Ba5 {[%clk 01:03:39]} {[%emt 00:00:48]} 26. Qf2 {[%clk 00:55:02]} {[%emt
00:00:25]} Bxe1 {[%clk 01:02:59]} {[%emt 00:01:10]} 27. Rxe1 {[%clk 00:55:27]}
{[%emt 00:00:04]} Rxe7 {[%clk 01:02:12]} {[%emt 00:01:18]} 28. f5 {[%clk
00:49:23]} {[%emt 00:06:34]} Bd7 {[%clk 01:01:49]} {[%emt 00:00:53]} 29. Na6
{[%clk 00:47:27]} {[%emt 00:02:27]} Bxf5 {[%clk 00:58:54]} {[%emt 00:03:24]} 30.
Qg3 {[%clk 00:47:10]} {[%emt 00:00:47]} Qd6 {[%clk 00:57:31]} {[%emt 00:01:53]}
31. Qxd6 {[%clk 00:46:33]} {[%emt 00:01:06]} cxd6 {[%clk 00:57:57]} {[%emt
00:00:05]} 32. Kf2 {[%clk 00:46:56]} {[%emt 00:00:06]} Rb7 {[%clk 00:55:29]}
{[%emt 00:02:58]} 33. b4 {[%clk 00:46:12]} {[%emt 00:01:14]} cxb3 {[%clk
00:55:37]} {[%emt 00:00:23]} 34. axb3 {[%clk 00:46:36]} {[%emt 00:00:05]} Rxb3
{[%clk 00:55:19]} {[%emt 00:00:49]} 35. Nc7 {[%clk 00:46:58]} {[%emt 00:00:09]}
Rb2+ {[%clk 00:55:22]} {[%emt 00:00:26]} 36. Kf3 {[%clk 00:46:30]} {[%emt
00:00:53]} Rab8 {[%clk 00:55:07]} {[%emt 00:00:49]} 37. Nd5 {[%clk 00:46:30]}
{[%emt 00:00:30]} Kf7 {[%clk 00:55:16]} {[%emt 00:00:22]} 38. Rc1 {[%clk
00:46:36]} {[%emt 00:00:24]} Rc2 {[%clk 00:55:06]} {[%emt 00:00:38]} 39. Ra1
{[%clk 00:46:31]} {[%emt 00:00:35]} Rb7 {[%clk 00:55:23]} {[%emt 00:00:14]} 40.
Ra6 {[%clk 00:46:56]} {[%emt 00:00:07]} Be6 {[%clk 00:53:22]} {[%emt 00:02:29]}
41. Nf4 {[%clk 00:45:55]} {[%emt 00:01:30]} g5 {[%clk 00:53:18]} {[%emt
00:00:35]} 42. Nh5 {[%clk 00:45:24]} {[%emt 00:01:01]} Bc4 {[%clk 00:51:21]}
{[%emt 00:02:26]} 43. Rxd6 {[%clk 00:43:51]} {[%emt 00:02:05]} Be2+ {[%clk
00:51:45]} {[%emt 00:00:05]} 0-1

[Event "NJSK 2024 C"]
[Site "Groningen, Netherlands"]
[Date "2024.04.29"]
[Round "4.5"]
[White "Ambrona Navarro, Himar"]
[Black "De Jong, Lode"]
[Result "1/2-1/2"]
[TimeControl "90min/40moves + 30min + 30sec/move"]
[WhiteElo "1963"]
[BlackElo "1587"]

1. d4 {[%clk 01:30:52]} {[%emt 00:00:05]} Nf6 {[%clk 01:30:59]} {[%emt
00:00:03]} 2. c4 {[%clk 01:31:13]} {[%emt 00:00:09]} g6 {[%clk 01:31:17]}
{[%emt 00:00:12]} 3. Nc3 {[%clk 01:31:39]} {[%emt 00:00:04]} Bg7 {[%clk
01:31:45]} {[%emt 00:00:03]} 4. e4 {[%clk 01:32:00]} {[%emt 00:00:08]} d6
{[%clk 01:32:13]} {[%emt 00:00:04]} 5. Nf3 {[%clk 01:32:21]} {[%emt 00:00:08]}
O-O {[%clk 01:32:38]} {[%emt 00:00:04]} 6. Bg5 {[%clk 01:32:45]} {[%emt
00:00:07]} h6 {[%clk 01:31:43]} {[%emt 00:01:25]} 7. Bf4 {[%clk 01:32:37]}
{[%emt 00:00:35]} Nbd7 {[%clk 01:31:36]} {[%emt 00:00:39]} 8. d5 {[%clk
01:29:25]} {[%emt 00:03:41]} e6 {[%clk 01:28:49]} {[%emt 00:03:18]} 9. Be2
{[%clk 01:28:04]} {[%emt 00:01:50]} exd5 {[%clk 01:29:07]} {[%emt 00:00:14]} 10.
exd5 {[%clk 01:27:50]} {[%emt 00:00:44]} Re8 {[%clk 01:28:05]} {[%emt
00:01:32]} 11. O-O {[%clk 01:26:37]} {[%emt 00:01:42]} Ne4 {[%clk 01:27:41]}
{[%emt 00:00:55]} 12. Nxe4 {[%clk 01:23:47]} {[%emt 00:03:20]} Rxe4 {[%clk
01:27:42]} {[%emt 00:00:29]} 13. Qd2 {[%clk 01:23:39]} {[%emt 00:00:29]} Qf6
{[%clk 01:17:55]} {[%emt 00:10:26]} 14. Be3 {[%clk 01:20:11]} {[%emt 00:03:58]}
Qxb2 {[%clk 01:17:35]} {[%emt 00:00:50]} 15. Qxb2 {[%clk 01:12:07]} {[%emt
00:08:34]} Bxb2 {[%clk 01:17:53]} {[%emt 00:00:13]} 16. Rab1 {[%clk 01:12:33]}
{[%emt 00:00:04]} Bg7 {[%clk 01:18:04]} {[%emt 00:00:19]} 17. Bd3 {[%clk
01:12:24]} {[%emt 00:00:38]} Re8 {[%clk 01:17:49]} {[%emt 00:00:46]} 18. Nd4
{[%clk 01:11:30]} {[%emt 00:01:24]} Nc5 {[%clk 01:09:13]} {[%emt 00:09:07]} 19.
Nb5 {[%clk 01:07:31]} {[%emt 00:04:28]} Nxd3 {[%clk 01:04:31]} {[%emt
00:05:12]} 20. Nxc7 {[%clk 01:07:40]} {[%emt 00:00:20]} Rxe3 {[%clk 01:04:21]}
{[%emt 00:00:41]} 21. fxe3 {[%clk 01:07:27]} {[%emt 00:00:43]} Rb8 {[%clk
01:04:23]} {[%emt 00:00:29]} 22. Na6 {[%clk 01:03:31]} {[%emt 00:04:23]} Ra8
{[%clk 01:02:49]} {[%emt 00:02:06]} 23. Nc7 {[%clk 01:01:36]} {[%emt 00:02:25]}
Rb8 {[%clk 01:02:58]} {[%emt 00:00:22]} 24. Na6 {[%clk 00:58:46]} {[%emt
00:03:18]} Ra8 {[%emt 00:02:32]} 25. Nc7 {[%clk 00:59:01]} {[%emt 00:00:14]}
Rb8 {[%emt 00:00:29]} 26. Nb5 Be5 27. Nc7 {[%emt 00:00:05]} 1/2-1/2

[Event "NJSK 2024 C"]
[Site "Groningen, Netherlands"]
[Date "2024.04.29"]
[Round "4.6"]
[White "Okita, Shinsaku"]
[Black "Darie, Aden"]
[Result "0-1"]
[TimeControl "90min/40moves + 30min + 30sec/move"]
[WhiteElo "1826"]
[BlackElo "1923"]

1. e4 {[%clk 01:30:57]} {[%emt 00:00:02]} c6 {[%clk 01:30:30]} {[%emt
00:00:31]} 2. d4 {[%clk 01:31:23]} {[%emt 00:00:05]} d5 {[%clk 01:30:52]}
{[%emt 00:00:08]} 3. exd5 {[%clk 01:31:50]} {[%emt 00:00:02]} cxd5 {[%clk
01:31:15]} {[%emt 00:00:06]} 4. Bd3 {[%clk 01:32:17]} {[%emt 00:00:04]} Nc6
{[%clk 01:31:38]} {[%emt 00:00:07]} 5. c3 {[%clk 01:32:42]} {[%emt 00:00:06]}
Qc7 {[%clk 01:32:04]} {[%emt 00:00:04]} 6. Ne2 {[%clk 01:32:40]} {[%emt
00:00:31]} e5 {[%clk 01:32:27]} {[%emt 00:00:07]} 7. dxe5 {[%clk 01:32:00]}
{[%emt 00:01:10]} Nxe5 {[%clk 01:32:47]} {[%emt 00:00:10]} 8. Bc2 {[%clk
01:31:48]} {[%emt 00:00:42]} Nf6 {[%clk 01:33:02]} {[%emt 00:00:15]} 9. Bf4
{[%clk 01:30:53]} {[%emt 00:01:25]} Bd6 {[%clk 01:33:25]} {[%emt 00:00:08]} 10.
Bg3 {[%clk 01:30:13]} {[%emt 00:01:09]} O-O {[%clk 01:22:48]} {[%emt 00:11:06]}
11. Nd4 {[%clk 01:23:51]} {[%emt 00:06:54]} Bg4 {[%clk 01:20:17]} {[%emt
00:02:59]} 12. f3 {[%clk 01:17:33]} {[%emt 00:06:49]} Rae8 {[%clk 00:56:15]}
{[%emt 00:24:33]} 13. O-O {[%clk 01:07:47]} {[%emt 00:10:15]} Bd7 {[%clk
00:53:37]} {[%emt 00:03:08]} 14. b3 {[%clk 00:59:53]} {[%emt 00:08:25]} Nh5
{[%clk 00:50:42]} {[%emt 00:03:24]} 15. f4 {[%clk 00:55:53]} {[%emt 00:04:30]}
Ng4 {[%clk 00:48:51]} {[%emt 00:02:20]} 16. Bf5 {[%clk 00:44:32]} {[%emt
00:11:52]} Nxg3 {[%clk 00:44:43]} {[%emt 00:04:38]} 17. Qxg4 {[%clk 00:37:40]}
{[%emt 00:07:22]} Nxf5 {[%clk 00:44:23]} {[%emt 00:00:50]} 18. Nxf5 {[%clk
00:37:49]} {[%emt 00:00:21]} g6 {[%clk 00:44:22]} {[%emt 00:00:31]} 19. Nh6+
{[%clk 00:36:47]} {[%emt 00:01:32]} Kg7 {[%clk 00:44:41]} {[%emt 00:00:10]} 20.
f5 {[%clk 00:34:37]} {[%emt 00:02:42]} Bxh2+ {[%clk 00:40:38]} {[%emt
00:04:32]} 21. Kh1 {[%clk 00:35:01]} {[%emt 00:00:07]} Qg3 {[%clk 00:40:22]}
{[%emt 00:00:45]} 22. f6+ {[%clk 00:33:20]} {[%emt 00:02:11]} Kxh6 {[%clk
00:39:23]} {[%emt 00:01:29]} 23. Qxd7 {[%clk 00:33:13]} {[%emt 00:00:37]} Re2
{[%clk 00:38:59]} {[%emt 00:00:53]} 24. Qxd5 {[%clk 00:32:28]} {[%emt
00:01:16]} Qh4 {[%clk 00:39:09]} {[%emt 00:00:19]} 25. Qd7 {[%clk 00:29:30]}
{[%emt 00:03:28]} Bg3+ {[%clk 00:38:23]} {[%emt 00:01:17]} 26. Qh3 {[%clk
00:29:26]} {[%emt 00:00:33]} Qxh3+ {[%clk 00:38:45]} {[%emt 00:00:09]} 27. gxh3
{[%clk 00:29:35]} {[%emt 00:00:21]} Rfe8 {[%clk 00:38:43]} {[%emt 00:00:32]} 28.
Na3 {[%clk 00:28:14]} {[%emt 00:01:52]} Rh2+ {[%clk 00:38:54]} {[%emt
00:00:17]} 29. Kg1 {[%clk 00:28:37]} {[%emt 00:00:08]} Ree2 {[%clk 00:39:15]}
{[%emt 00:00:09]} 30. Rfd1 {[%clk 00:26:33]} {[%emt 00:02:34]} a6 {[%clk
00:35:32]} {[%emt 00:04:13]} 31. Nc4 {[%clk 00:25:33]} {[%emt 00:01:31]} b5
{[%clk 00:32:54]} {[%emt 00:03:08]} 32. Nd6 {[%clk 00:23:25]} {[%emt 00:02:37]}
Kg5 {[%clk 00:27:59]} {[%emt 00:05:25]} 33. Nxf7+ {[%clk 00:19:06]} {[%emt
00:04:49]} Kxf6 {[%clk 00:28:18]} {[%emt 00:00:11]} 34. Rf1+ {[%clk 00:18:04]}
{[%emt 00:01:32]} Kg7 {[%clk 00:28:39]} {[%emt 00:00:09]} 35. Rf3 {[%clk
00:18:28]} {[%emt 00:00:07]} Reg2+ {[%clk 00:29:03]} {[%emt 00:00:06]} 36. Kf1
{[%clk 00:18:35]} {[%emt 00:00:23]} Rf2+ {[%clk 00:29:29]} {[%emt 00:00:04]}
0-1